[Event "Najdorf Memorial-A 2022"]
[Site "Warsaw"]
[Date "2022.07.16"]
[Round "8.2"]
[White "Romanishin, Oleg M"]
[Black "Chomczyk, Marek"]
[Result "0-1"]
[ECO "A05"]
[WhiteElo "2404"]
[BlackElo "2290"]
[Annotator "ChessBase"]
[PlyCount "82"]
[EventDate "2022.07.09"]
[EventType "swiss"]
[EventCountry "POL"]
[SourceTitle "playchess.com"]
[Source "ChessBase"]
[SourceQuality "1"]
[TimeControl "40/5400+30:1800+30"]

1. Nf3 {[%emt 0:00:04]} Nf6 {[%emt 0:00:07]} 2. g3 {[%emt 0:00:16]} g6 {[%emt 0:00:12]} 3. Bg2 {[%emt 0:00:15]} Bg7 {[%emt 0:00:08]} 4. c4 {[%emt 0:00:13]} O-O {[%emt 0:00:55]} 5. O-O {[%emt 0:00:14]} d6 {[%emt 0:00:20]} 6. d4 {[%emt 0:00:06]} c5 {[%emt 0:00:48]} 7. b3 {[%emt 0:00:06]} d5 {[%emt 0:00:16]} 8. Bb2 {[%emt 0:02:34]} dxc4 {[%emt 0:00:15]} 9. dxc5 {[%emt 0:00:31]} Qa5 {[%emt 0:00:24]} 10. Nbd2 {[%emt 0:18:25]} c3 {[%emt 0:00:08]} 11. Nc4 {[%emt 0:00:06]} Qxc5 {[%emt 0:00:04]} 12. Bxc3 {[%emt 0:00:09]} Nc6 {[%emt 0:00:05]} 13. Qc1 {[%emt 0:09:56]} Be6 {[%emt 0:05:13]} 14. Nce5 {[%emt 0:14:12]} Ng4 {[%emt 0:15:20]} 15. Nxc6 {[%emt 0:16:53]} Bxc3 {[%emt 0:00:24]} 16. Ng5 {[%emt 0:00:38]} bxc6 {[%emt 0:03:06]} 17. Ne4 {[%emt 0:08:50]} Qh5 {[%emt 0:00:10]} 18. h3 {[%emt 0:00:03]} Bxa1 {[%emt 0:00:33]} 19. hxg4 {[%emt 0:00:05]} Bxg4 {[%emt 0:02:32]} 20. Qxa1 {[%emt 0:00:12]} Bxe2 {[%emt 0:00:23]} 21. Rc1 {[%emt 0:06:57]} Rad8 {[%emt 0:01:07]} 22. Qc3 {[%emt 0:02:37]} Rd3 {[%emt 0:01:39]} 23. Qxc6 {[%emt 0:05:04]} Bf3 {[%emt 0:03:20]} 24. Qc5 {[%emt 0:01:15]} Qxc5 {[%emt 0:09:21]} 25. Nxc5 {[%emt 0:01:07]} Rd1+ {[%emt 0:00:06]} 26. Rxd1 {[%emt 0:00:04]} Bxd1 {[%emt 0:00:05]} 27. Kf1 {[%emt 0:01:48]} Rd8 {[%emt 0:00:36]} 28. Ke1 {[%emt 0:00:09]} Bg4 {[%emt 0:00:14]} 29. f3 {[%emt 0:00:05]} Bf5 {[%emt 0:00:10]} 30. Ke2 {[%emt 0:01:10]} h5 {[%emt 0:00:42]} 31. f4 {[%emt 0:01:30]} e5 {[%emt 0:00:46]} 32. fxe5 {[%emt 0:00:35]} Re8 {[%emt 0:00:06]} 33. b4 {[%emt 0:00:23]} Rxe5+ {[%emt 0:00:04]} 34. Kf2 {[%emt 0:01:11]} g5 {[%emt 0:00:38]} 35. a3 {[%emt 0:02:29]} Kg7 {[%emt 0:06:03]} 36. Bf3 {[%emt 0:02:52]} Bg4 {[%emt 0:00:35]} 37. Be4 {[%emt 0:00:20]} Be6 {[%emt 0:02:30]} 38. Bf3 {[%emt 0:00:47]} Kh6 {[%emt 0:03:19]} 39. Nd3 {[%emt 0:01:26]} Rf5 {[%emt 0:00:23]} 40. Ke3 {[%emt 0:00:00]} Bd5 {[%emt 0:00:00]} 41. Be2 {[%emt 0:00:51]} Bc4 {[%emt 0:01:47]} 0-1

[Event "Najdorf Memorial-A 2022"]
[Site "Warsaw"]
[Date "2022.07.16"]
[Round "8.3"]
[White "Fiszer, Bartosz"]
[Black "Noe, Christopher"]
[Result "0-1"]
[ECO "B19"]
[WhiteElo "2228"]
[BlackElo "2505"]
[Annotator "ChessBase"]
[PlyCount "124"]
[EventDate "2022.07.09"]
[EventType "swiss"]
[EventCountry "POL"]
[SourceTitle "playchess.com"]
[Source "ChessBase"]
[SourceQuality "1"]
[TimeControl "40/5400+30:1800+30"]

1. e4 {[%emt 0:00:03]} c6 {[%emt 0:00:07]} 2. d4 {[%emt 0:00:04]} d5 {[%emt 0:00:06]} 3. Nd2 {[%emt 0:00:04]} dxe4 {[%emt 0:00:34]} 4. Nxe4 {[%emt 0:00:06]} Bf5 {[%emt 0:00:07]} 5. Ng3 {[%emt 0:00:04]} Bg6 {[%emt 0:00:08]} 6. h4 {[%emt 0:00:03]} h6 {[%emt 0:00:12]} 7. Nf3 {[%emt 0:00:05]} Nd7 {[%emt 0:00:15]} 8. h5 {[%emt 0:00:04]} Bh7 {[%emt 0:00:05]} 9. Bd3 {[%emt 0:00:02]} Bxd3 {[%emt 0:00:09]} 10. Qxd3 {[%emt 0:00:08]} e6 {[%emt 0:00:09]} 11. Bd2 {[%emt 0:00:17]} Ngf6 {[%emt 0:00:14]} 12. O-O-O {[%emt 0:00:11]} Be7 {[%emt 0:00:16]} 13. Ne4 {[%emt 0:00:39]} Qb6 {[%emt 0:00:39]} 14. Nxf6+ {[%emt 0:07:13]} Bxf6 {[%emt 0:00:12]} 15. g4 {[%emt 0:08:32]} c5 {[%emt 0:19:32]} 16. g5 {[%emt 0:22:27]} hxg5 {[%emt 0:00:56]} 17. Bxg5 {[%emt 0:00:10]} O-O-O {[%emt 0:35:22]} 18. Qc3 {[%emt 0:09:28]} Qc7 {[%emt 0:02:32]} 19. Bxf6 {[%emt 0:02:16]} Nxf6 {[%emt 0:02:56]} 20. Qxc5 {[%emt 0:08:34]} Qxc5 {[%emt 0:00:33]} 21. dxc5 {[%emt 0:00:02]} Rxd1+ {[%emt 0:12:59]} 22. Kxd1 {[%emt 0:00:16]} Ne4 {[%emt 0:00:21]} 23. Ke2 {[%emt 0:08:28]} Nxc5 {[%emt 0:00:07]} 24. Rg1 {[%emt 0:03:44]} Rxh5 {[%emt 0:00:21]} 25. Rxg7 {[%emt 0:00:06]} Rf5 {[%emt 0:00:42]} 26. Nd4 {[%emt 0:03:59]} Rf4 {[%emt 0:02:43]} 27. c3 {[%emt 0:05:29]} e5 {[%emt 0:04:49]} 28. Nb5 {[%emt 0:05:24]} Kd7 {[%emt 0:00:04]} 29. Nxa7 {[%emt 0:03:42]} Na4 {[%emt 0:10:18]} 30. Rg5 {[%emt 0:03:55]} Ke6 {[%emt 0:00:15]} 31. Rg8 {[%emt 0:01:09]} Nxb2 {[%emt 0:00:11]} 32. Rb8 {[%emt 0:02:32]} Na4 {[%emt 0:00:43]} 33. Rxb7 {[%emt 0:04:28]} Nxc3+ {[%emt 0:00:19]} 34. Ke1 {[%emt 0:01:51]} Rd4 {[%emt 0:02:44]} 35. Kf1 {[%emt 0:00:49]} Rd2 {[%emt 0:01:02]} 36. Nc6 {[%emt 0:00:50]} f6 {[%emt 0:01:29]} 37. a3 {[%emt 0:01:05]} Ne4 {[%emt 0:01:10]} 38. Ke1 {[%emt 0:00:36]} Rxf2 {[%emt 0:00:43]} 39. Rb4 {[%emt 0:00:03]} Rc2 {[%emt 0:00:45]} 40. Nd8+ {[%emt 0:00:00]} Kd5 {[%emt 0:00:00]} 41. a4 {[%emt 0:04:37]} Nd6 {[%emt 0:07:09]} 42. a5 {[%emt 0:02:34]} Rc8 {[%emt 0:10:30]} 43. Nb7 {[%emt 0:00:09]} Nxb7 {[%emt 0:00:18]} 44. Rxb7 {[%emt 0:00:14]} Rc1+ {[%emt 0:06:08]} 45. Kd2 {[%emt 0:02:26]} Ra1 {[%emt 0:00:06]} 46. Ra7 {[%emt 0:00:11]} f5 {[%emt 0:01:05]} 47. Kc3 {[%emt 0:00:50]} f4 {[%emt 0:01:57]} 48. Kb2 {[%emt 0:00:45]} Rg1 {[%emt 0:00:16]} 49. a6 {[%emt 0:01:07]} Rg6 {[%emt 0:02:11]} 50. Rd7+ {[%emt 0:00:12]} Ke4 {[%emt 0:00:05]} 51. a7 {[%emt 0:00:28]} Ra6 {[%emt 0:00:22]} 52. Rb7 {[%emt 0:00:11]} f3 {[%emt 0:02:14]} 53. Rb4+ {[%emt 0:00:05]} Ke3 {[%emt 0:03:07]} 54. Rb3+ {[%emt 0:00:13]} Ke2 {[%emt 0:00:06]} 55. Ra3 {[%emt 0:00:16]} Rxa7 {[%emt 0:00:11]} 56. Rxa7 {[%emt 0:00:05]} f2 {[%emt 0:00:13]} 57. Re7 {[%emt 0:00:40]} f1=Q {[%emt 0:00:07]} 58. Rxe5+ {[%emt 0:00:05]} Kd3 {[%emt 0:00:04]} 59. Rd5+ {[%emt 0:00:05]} Kc4 {[%emt 0:00:05]} 60. Rd2 {[%emt 0:00:03]} Qf3 {[%emt 0:00:29]} 61. Rh2 {[%emt 0:01:26]} Qc3+ {[%emt 0:01:20]} 62. Kb1 {[%emt 0:00:24]} Kb3 {[%emt 0:01:26]} 0-1

[Event "Najdorf Memorial-A 2022"]
[Site "Warsaw"]
[Date "2022.07.16"]
[Round "8.4"]
[White "Jarmula, Lukasz"]
[Black "Danielyan, Vahe"]
[Result "1-0"]
[ECO "C85"]
[WhiteElo "2452"]
[BlackElo "2295"]
[Annotator "ChessBase"]
[PlyCount "153"]
[EventDate "2022.07.09"]
[EventType "swiss"]
[EventCountry "POL"]
[SourceTitle "playchess.com"]
[Source "ChessBase"]
[SourceQuality "1"]
[TimeControl "40/5400+30:1800+30"]

1. e4 {[%emt 0:00:02]} e5 {[%emt 0:00:03]} 2. Nf3 {[%emt 0:00:07]} Nc6 {[%emt 0:00:02]} 3. Bb5 {[%emt 0:00:07]} a6 {[%emt 0:00:21]} 4. Ba4 {[%emt 0:00:06]} Nf6 {[%emt 0:00:05]} 5. O-O {[%emt 0:00:07]} Be7 {[%emt 0:01:00]} 6. Bxc6 {[%emt 0:00:23]} dxc6 {[%emt 0:00:18]} 7. d3 {[%emt 0:00:05]} Nd7 {[%emt 0:00:29]} 8. Be3 {[%emt 0:00:08]} O-O {[%emt 0:00:19]} 9. Nc3 {[%emt 0:00:04]} f6 {[%emt 0:00:11]} 10. Nh4 {[%emt 0:02:12]} Nb8 {[%emt 0:02:41]} 11. Nf5 {[%emt 0:03:31]} Bxf5 {[%emt 0:00:03]} 12. exf5 {[%emt 0:00:08]} c5 {[%emt 0:00:53]} 13. Ne4 {[%emt 0:05:57]} Nd7 {[%emt 0:01:23]} 14. c3 {[%emt 0:04:32]} Kh8 {[%emt 0:00:07]} 15. Qb3 {[%emt 0:01:39]} b6 {[%emt 0:01:21]} 16. Rad1 {[%emt 0:04:08]} Qe8 {[%emt 0:00:03]} 17. Qe6 {[%emt 0:03:01]} Rf7 {[%emt 0:09:14]} 18. d4 {[%emt 0:05:02]} exd4 {[%emt 0:04:50]} 19. cxd4 {[%emt 0:00:12]} cxd4 {[%emt 0:01:25]} 20. Bxd4 {[%emt 0:02:45]} Bf8 {[%emt 0:00:44]} 21. f3 {[%emt 0:09:32]} Re7 {[%emt 0:05:21]} 22. Qc4 {[%emt 0:03:52]} Ne5 {[%emt 0:00:52]} 23. Bxe5 {[%emt 0:02:44]} Rxe5 {[%emt 0:01:40]} 24. g4 {[%emt 0:03:01]} Qb5 {[%emt 0:09:25]} 25. b3 {[%emt 0:06:23]} Qxc4 {[%emt 0:01:26]} 26. bxc4 {[%emt 0:00:12]} b5 {[%emt 0:00:56]} 27. Rd7 {[%emt 0:09:38]} Rc8 {[%emt 0:01:44]} 28. Rc1 {[%emt 0:02:15]} Re7 {[%emt 0:09:53]} 29. Rd3 {[%emt 0:04:33]} b4 {[%emt 0:03:06]} 30. c5 {[%emt 0:06:00]} Rb8 {[%emt 0:02:06]} 31. c6 {[%emt 0:06:12]} Kg8 {[%emt 0:00:03]} 32. Rd7 {[%emt 0:08:03]} a5 {[%emt 0:13:02]} 33. Rd5 {[%emt 0:05:04]} a4 {[%emt 0:02:13]} 34. Ra5 {[%emt 0:00:09]} a3 {[%emt 0:00:48]} 35. Kf2 {[%emt 0:00:23]} b3 {[%emt 0:01:43]} 36. axb3 {[%emt 0:00:45]} Rxb3 {[%emt 0:00:10]} 37. Ra8 {[%emt 0:00:49]} Kf7 {[%emt 0:10:17]} 38. Rd1 {[%emt 0:01:05]} Re8 {[%emt 0:07:17]} 39. Rd7+ {[%emt 0:00:20]} Be7 {[%emt 0:00:03]} 40. Ra7 {[%emt 0:00:00]} Kf8 {[%emt 0:00:00]} 41. Rdxc7 {[%emt 0:04:44]} Rb2+ {[%emt 0:03:21]} 42. Kg3 {[%emt 0:01:19]} Rc2 {[%emt 0:00:03]} 43. h4 {[%emt 0:02:09]} h6 {[%emt 0:01:02]} 44. Kh3 {[%emt 0:12:02]} Rc1 {[%emt 0:00:48]} 45. g5 {[%emt 0:06:14]} h5 {[%emt 0:00:29]} 46. g6 {[%emt 0:02:19]} Rc4 {[%emt 0:04:04]} 47. Nd6 {[%emt 0:05:43]} Bxd6 {[%emt 0:02:07]} 48. Rf7+ {[%emt 0:00:05]} Kg8 {[%emt 0:00:02]} 49. Rxg7+ {[%emt 0:00:08]} Kh8 {[%emt 0:00:01]} 50. Rh7+ {[%emt 0:00:17]} Kg8 {[%emt 0:00:03]} 51. Rag7+ {[%emt 0:00:31]} Kf8 {[%emt 0:00:03]} 52. Rd7 {[%emt 0:00:22]} Kg8 {[%emt 0:04:17]} 53. Rxd6 {[%emt 0:00:48]} Ra4 {[%emt 0:00:10]} 54. Rd1 {[%emt 0:01:08]} a2 {[%emt 0:01:13]} 55. Ra1 {[%emt 0:00:20]} Ra3 {[%emt 0:01:30]} 56. c7 {[%emt 0:00:25]} Rxf3+ {[%emt 0:00:33]} 57. Kg2 {[%emt 0:00:06]} Ra3 {[%emt 0:00:05]} 58. Rd7 {[%emt 0:01:51]} Raa8 {[%emt 0:00:15]} 59. Kf2 {[%emt 0:00:40]} Rf8 {[%emt 0:01:45]} 60. Ke2 {[%emt 0:01:03]} Rfe8+ {[%emt 0:01:27]} 61. Kd2 {[%emt 0:00:23]} Rec8 {[%emt 0:00:24]} 62. Kc3 {[%emt 0:01:04]} Re8 {[%emt 0:00:14]} 63. Kb3 {[%emt 0:00:22]} Re3+ {[%emt 0:00:19]} 64. Kc4 {[%emt 0:00:14]} Ree8 {[%emt 0:00:23]} 65. Kb5 {[%emt 0:00:23]} Rf8 {[%emt 0:00:45]} 66. Kb6 {[%emt 0:00:22]} Ra3 {[%emt 0:00:29]} 67. Rd8 {[%emt 0:01:27]} Rb3+ {[%emt 0:00:23]} 68. Kc6 {[%emt 0:00:12]} Rc3+ {[%emt 0:00:08]} 69. Kb7 {[%emt 0:00:11]} Rb3+ {[%emt 0:00:12]} 70. Kc8 {[%emt 0:00:09]} Rb2 {[%emt 0:01:03]} 71. Rxf8+ {[%emt 0:00:23]} Kxf8 {[%emt 0:00:03]} 72. Kd7 {[%emt 0:00:09]} Rd2+ {[%emt 0:00:04]} 73. Ke6 {[%emt 0:00:07]} Rc2 {[%emt 0:00:03]} 74. Kxf6 {[%emt 0:00:10]} Rxc7 {[%emt 0:00:03]} 75. Rxa2 {[%emt 0:00:12]} Rc6+ {[%emt 0:00:17]} 76. Kg5 {[%emt 0:00:07]} Kg7 {[%emt 0:00:03]} 77. f6+ {[%emt 0:00:15]} 1-0

[Event "Najdorf Memorial-A 2022"]
[Site "Warsaw"]
[Date "2022.07.16"]
[Round "8.5"]
[White "Praczukowski, Stanislaw"]
[Black "Golubka, Petro"]
[Result "0-1"]
[ECO "A40"]
[WhiteElo "2055"]
[BlackElo "2378"]
[Annotator "ChessBase"]
[PlyCount "46"]
[EventDate "2022.07.09"]
[EventType "swiss"]
[EventCountry "POL"]
[SourceTitle "playchess.com"]
[Source "ChessBase"]
[SourceQuality "1"]
[TimeControl "40/5400+30:1800+30"]

1. d4 {[%emt 0:00:01]} e6 {[%emt 0:08:01]} 2. c4 {[%emt 0:01:41]} b6 {[%emt 0:00:27]} 3. a3 {[%emt 0:00:40]} d5 {[%emt 0:02:42]} 4. cxd5 {[%emt 0:01:15]} exd5 {[%emt 0:00:03]} 5. Nc3 {[%emt 0:00:46]} Be7 {[%emt 0:00:34]} 6. g3 {[%emt 0:03:09]} Nf6 {[%emt 0:01:45]} 7. Bg2 {[%emt 0:00:55]} O-O {[%emt 0:00:20]} 8. Nf3 {[%emt 0:04:15]} Bb7 {[%emt 0:00:17]} 9. O-O {[%emt 0:01:08]} Na6 {[%emt 0:00:05]} 10. b4 {[%emt 0:05:21]} c6 {[%emt 0:02:33]} 11. Ne5 {[%emt 0:06:39]} Nc7 {[%emt 0:00:36]} 12. Rb1 {[%emt 0:02:32]} b5 {[%emt 0:01:08]} 13. a4 {[%emt 0:08:51]} a6 {[%emt 0:00:40]} 14. Qc2 {[%emt 0:05:11]} Ne6 {[%emt 0:01:12]} 15. Rd1 {[%emt 0:00:49]} Qc7 {[%emt 0:03:48]} 16. f4 {[%emt 0:09:05]} Rfc8 {[%emt 0:05:37]} 17. Be3 {[%emt 0:03:39]} a5 {[%emt 0:01:38]} 18. f5 {[%emt 0:08:18]} Nd8 {[%emt 0:13:56]} 19. bxa5 {[%emt 0:11:06]} Qxa5 {[%emt 0:08:29]} 20. Bd2 {[%emt 0:08:32]} Qa7 {[%emt 0:12:41]} 21. Bf4 {[%emt 0:06:07]} b4 {[%emt 0:06:54]} 22. Na2 {[%emt 0:01:47]} c5 {[%emt 0:00:17]} 23. Nd3 {[%emt 0:02:06]} b3 {[%emt 0:02:46]} 0-1

[Event "Najdorf Memorial-A 2022"]
[Site "Warsaw"]
[Date "2022.07.16"]
[Round "8.6"]
[White "Musial, Tomasz"]
[Black "Sriram, Jha"]
[Result "0-1"]
[ECO "D12"]
[WhiteElo "2131"]
[BlackElo "2361"]
[Annotator "ChessBase"]
[PlyCount "60"]
[EventDate "2022.07.09"]
[EventType "swiss"]
[EventCountry "POL"]
[SourceTitle "playchess.com"]
[Source "ChessBase"]
[SourceQuality "1"]
[TimeControl "40/5400+30:1800+30"]

1. d4 {[%emt 0:00:05]} d5 {[%emt 0:00:38]} 2. c4 {[%emt 0:00:19]} c6 {[%emt 0:00:10]} 3. Nf3 {[%emt 0:00:17]} Nf6 {[%emt 0:00:08]} 4. e3 {[%emt 0:00:32]} Bf5 {[%emt 0:01:07]} 5. Nc3 {[%emt 0:00:11]} e6 {[%emt 0:01:39]} 6. Nh4 {[%emt 0:00:19]} Be4 {[%emt 0:01:24]} 7. f3 {[%emt 0:00:17]} Bg6 {[%emt 0:00:05]} 8. Nxg6 {[%emt 0:00:31]} hxg6 {[%emt 0:00:04]} 9. g3 {[%emt 0:00:23]} Bd6 {[%emt 0:01:06]} 10. Kf2 {[%emt 0:00:18]} Nbd7 {[%emt 0:03:00]} 11. Kg2 {[%emt 0:01:35]} O-O {[%emt 0:01:37]} 12. Qb3 {[%emt 0:01:05]} Rb8 {[%emt 0:12:30]} 13. a4 {[%emt 0:00:10]} Qe7 {[%emt 0:02:33]} 14. Bd2 {[%emt 0:07:54]} Rfd8 {[%emt 0:10:36]} 15. Rc1 {[%emt 0:14:46]} dxc4 {[%emt 0:07:57]} 16. Bxc4 {[%emt 0:00:14]} e5 {[%emt 0:23:29]} 17. Rhe1 {[%emt 0:06:32]} g5 {[%emt 0:00:30]} 18. f4 {[%emt 0:14:18]} b5 {[%emt 0:06:11]} 19. axb5 {[%emt 0:08:57]} cxb5 {[%emt 0:00:05]} 20. Bf1 {[%emt 0:08:35]} b4 {[%emt 0:03:06]} 21. fxe5 {[%emt 0:03:18]} bxc3 {[%emt 0:00:55]} 22. Qxc3 {[%emt 0:01:19]} Nxe5 23. dxe5 {[%emt 0:00:18]} Bb4 {[%emt 0:02:36]} 24. exf6 {[%emt 0:01:55]} Qe4+ {[%emt 0:01:38]} 25. Kg1 {[%emt 0:00:33]} Bxc3 {[%emt 0:00:24]} 26. Bxc3 {[%emt 0:00:05]} gxf6 {[%emt 0:00:38]} 27. Bxf6 {[%emt 0:00:38]} Rdc8 {[%emt 0:02:57]} 28. Bc3 {[%emt 0:01:43]} Rxc3 {[%emt 0:05:05]} 29. bxc3 {[%emt 0:00:15]} Rb2 {[%emt 0:00:02]} 30. Ba6 {[%emt 0:02:48]} Qg2# {[%emt 0:00:10]} 0-1

[Event "Najdorf Memorial-A 2022"]
[Site "Warsaw"]
[Date "2022.07.16"]
[Round "8.7"]
[White "Janeczko, Jakub"]
[Black "Backiel, Hubert"]
[Result "0-1"]
[ECO "B93"]
[WhiteElo "2080"]
[BlackElo "2045"]
[Annotator "ChessBase"]
[PlyCount "70"]
[EventDate "2022.07.09"]
[EventType "swiss"]
[EventCountry "POL"]
[SourceTitle "playchess.com"]
[Source "ChessBase"]
[SourceQuality "1"]
[TimeControl "40/5400+30:1800+30"]

1. e4 {[%emt 0:00:04]} c5 {[%emt 0:00:17]} 2. Nf3 {[%emt 0:00:05]} d6 {[%emt 0:00:06]} 3. d4 {[%emt 0:00:03]} cxd4 {[%emt 0:00:04]} 4. Nxd4 {[%emt 0:00:04]} Nf6 {[%emt 0:00:06]} 5. Nc3 {[%emt 0:00:05]} a6 {[%emt 0:00:04]} 6. f4 {[%emt 0:00:04]} e6 {[%emt 0:04:29]} 7. Qf3 {[%emt 0:03:54]} Qc7 {[%emt 0:02:49]} 8. Be3 {[%emt 0:02:46]} b5 {[%emt 0:02:25]} 9. a3 {[%emt 0:13:42]} Bb7 {[%emt 0:01:50]} 10. O-O-O {[%emt 0:00:43]} Nbd7 {[%emt 0:08:31]} 11. g4 {[%emt 0:08:14]} d5 {[%emt 0:11:48]} 12. e5 {[%emt 0:07:06]} Ne4 {[%emt 0:04:02]} 13. Nxe4 {[%emt 0:00:57]} dxe4 {[%emt 0:00:22]} 14. Qe2 {[%emt 0:08:39]} Rc8 {[%emt 0:11:26]} 15. Kb1 {[%emt 0:08:07]} Be7 {[%emt 0:06:23]} 16. g5 {[%emt 0:07:14]} Nc5 {[%emt 0:07:34]} 17. Bh3 {[%emt 0:08:24]} g6 {[%emt 0:09:21]} 18. Rd2 {[%emt 0:12:56]} Na4 {[%emt 0:09:17]} 19. f5 {[%emt 0:07:50]} Bxa3 {[%emt 0:10:43]} 20. Nxb5 {[%emt 0:06:18]} axb5 {[%emt 0:00:20]} 21. Qxb5+ {[%emt 0:00:31]} Bc6 {[%emt 0:00:36]} 22. Qb3 {[%emt 0:00:11]} Bxb2 {[%emt 0:03:07]} 23. Rd6 {[%emt 0:03:23]} Nc3+ {[%emt 0:04:04]} 24. Kxb2 {[%emt 0:00:03]} Rb8 {[%emt 0:00:07]} 25. fxe6 {[%emt 0:00:44]} Rxb3+ {[%emt 0:00:49]} 26. cxb3 {[%emt 0:00:02]} O-O {[%emt 0:01:32]} 27. Rc1 {[%emt 0:00:33]} Na4+ {[%emt 0:00:23]} 28. bxa4 {[%emt 0:00:01]} Qb7+ {[%emt 0:00:42]} 29. Kc3 {[%emt 0:00:34]} fxe6 {[%emt 0:00:49]} 30. Bxe6+ {[%emt 0:00:04]} Kh8 {[%emt 0:00:06]} 31. Rcd1 {[%emt 0:01:42]} Bxa4 {[%emt 0:00:13]} 32. Rd8 {[%emt 0:00:54]} Qc7+ {[%emt 0:00:09]} 33. Bc4 {[%emt 0:00:03]} Rxd8 {[%emt 0:00:30]} 34. Rxd8+ {[%emt 0:00:02]} Qxd8 {[%emt 0:00:08]} 35. Bd4 {[%emt 0:00:02]} Qa5+ {[%emt 0:00:24]} 0-1

[Event "Najdorf Memorial-A 2022"]
[Site "Warsaw"]
[Date "2022.07.16"]
[Round "8.8"]
[White "Maslanka, Wojciech"]
[Black "Mickiewicz, Piotr"]
[Result "1-0"]
[ECO "B90"]
[WhiteElo "2000"]
[BlackElo "2284"]
[Annotator "ChessBase"]
[PlyCount "115"]
[EventDate "2022.07.09"]
[EventType "swiss"]
[EventCountry "POL"]
[SourceTitle "playchess.com"]
[Source "ChessBase"]
[SourceQuality "1"]
[TimeControl "40/5400+30:1800+30"]

1. e4 {[%emt 0:00:09]} c5 {[%emt 0:00:20]} 2. Nf3 {[%emt 0:00:06]} d6 {[%emt 0:00:58]} 3. d4 {[%emt 0:00:05]} Nf6 {[%emt 0:00:06]} 4. Nc3 {[%emt 0:01:04]} cxd4 {[%emt 0:00:06]} 5. Nxd4 {[%emt 0:00:06]} a6 {[%emt 0:00:33]} 6. Rg1 {[%emt 0:00:25]} e6 {[%emt 0:08:26]} 7. g4 {[%emt 0:03:23]} b5 {[%emt 0:03:57]} 8. g5 {[%emt 0:01:55]} Nfd7 {[%emt 0:00:06]} 9. a3 {[%emt 0:07:21]} Bb7 {[%emt 0:15:52]} 10. Qh5 {[%emt 0:13:03]} g6 {[%emt 0:01:17]} 11. Qh4 {[%emt 0:00:17]} Nc6 {[%emt 0:16:04]} 12. Be3 {[%emt 0:10:05]} Bg7 {[%emt 0:10:47]} 13. O-O-O {[%emt 0:03:02]} O-O {[%emt 0:08:41]} 14. Rg3 {[%emt 0:03:10]} Nxd4 {[%emt 0:22:11]} 15. Bxd4 {[%emt 0:00:54]} Bxd4 {[%emt 0:00:03]} 16. Rxd4 {[%emt 0:00:38]} Qb6 {[%emt 0:00:10]} 17. Rd2 {[%emt 0:33:48]} Rfe8 {[%emt 0:03:49]} 18. Rh3 {[%emt 0:05:48]} h5 {[%emt 0:00:18]} 19. gxh6 {[%emt 0:00:22]} d5 {[%emt 0:00:19]} 20. h7+ {[%emt 0:01:18]} Kh8 {[%emt 0:01:04]} 21. Rf3 {[%emt 0:00:37]} Kg7 {[%emt 0:02:14]} 22. Bh3 {[%emt 0:05:34]} Qd8 {[%emt 0:02:39]} 23. Qf4 {[%emt 0:00:07]} Qf6 {[%emt 0:00:13]} 24. exd5 {[%emt 0:05:01]} Qxf4 {[%emt 0:01:04]} 25. Rxf4 {[%emt 0:00:03]} e5 {[%emt 0:00:19]} 26. Bxd7 {[%emt 0:01:06]} exf4 {[%emt 0:00:03]} 27. Bxe8 {[%emt 0:00:07]} Rxe8 {[%emt 0:00:03]} 28. d6 {[%emt 0:01:09]} Kxh7 {[%emt 0:00:42]} 29. Nd5 {[%emt 0:01:58]} Kg7 {[%emt 0:01:39]} 30. Nxf4 {[%emt 0:00:35]} Kf6 {[%emt 0:00:51]} 31. Nd5+ {[%emt 0:01:24]} Kf5 {[%emt 0:00:02]} 32. d7 {[%emt 0:00:31]} Rd8 {[%emt 0:00:20]} 33. Nb6 {[%emt 0:00:27]} Ke6 {[%emt 0:00:08]} 34. Re2+ {[%emt 0:01:09]} Kd6 {[%emt 0:00:23]} 35. Re8 {[%emt 0:00:09]} Kc7 {[%emt 0:00:03]} 36. Kd2 {[%emt 0:00:33]} Bc6 {[%emt 0:00:54]} 37. Rxd8 {[%emt 0:00:08]} Kxd8 {[%emt 0:00:02]} 38. Ke3 {[%emt 0:00:15]} f6 {[%emt 0:02:04]} 39. Kd4 {[%emt 0:00:12]} Kc7 {[%emt 0:00:21]} 40. Kc5 {[%emt 0:00:00]} Bf3 {[%emt 0:00:00]} 41. c3 {[%emt 0:06:47]} g5 {[%emt 0:06:21]} 42. Nd5+ {[%emt 0:01:09]} Kxd7 {[%emt 0:00:10]} 43. Nxf6+ {[%emt 0:00:37]} Ke6 {[%emt 0:00:17]} 44. Ne8 {[%emt 0:00:07]} Kd7 {[%emt 0:04:04]} 45. Ng7 {[%emt 0:12:13]} Bg4 {[%emt 0:06:34]} 46. Kd5 {[%emt 0:00:08]} Ke7 {[%emt 0:04:34]} 47. Ke5 {[%emt 0:00:14]} Kf7 {[%emt 0:01:11]} 48. Nf5 {[%emt 0:00:51]} Kg6 {[%emt 0:00:15]} 49. Ng3 {[%emt 0:00:26]} a5 {[%emt 0:01:22]} 50. f4 {[%emt 0:01:10]} gxf4 {[%emt 0:00:17]} 51. Kxf4 {[%emt 0:00:05]} Bh3 {[%emt 0:00:33]} 52. Ne4 {[%emt 0:00:21]} Kh5 {[%emt 0:06:08]} 53. Ke5 {[%emt 0:01:38]} Bg2 {[%emt 0:01:38]} 54. Nd6 {[%emt 0:00:16]} Bf1 {[%emt 0:04:06]} 55. Kd4 {[%emt 0:00:12]} Kg4 {[%emt 0:00:20]} 56. Kc5 {[%emt 0:00:04]} Kh3 {[%emt 0:00:21]} 57. Nxb5 {[%emt 0:00:08]} Kxh2 {[%emt 0:00:17]} 58. Kb6 {[%emt 0:00:41]} 1-0